Cogmind - Beta 9.4 @@@ ROGUE MODE // 2020.03.03 @ 17:44:37 Player: Finestep Result: Destroyed by as-72461 with Assembled Heavy Rifle Performance ------------- Evolutions (0) 0 Regions Visited (2) 400 Robots Destroyed (30) 150 Value Destroyed (496) 496 Prototype IDs (0) 0 Alien Tech Used (0) 0 Bonus (0) 0 TOTAL SCORE: 1046 Bonus ------- None Cogmind --------- Core Integrity 0/250 Matter 267/300 Energy 107/250 System Corruption 4% Temperature Cool (20) Movement Treading (160) Location -10/Mines Parts ------- > --- POWER (1) -------- Ion Engine > --- PROPULSION (2) --- Light Treads Light Treads > --- UTILITY (2) ------ Large Storage Unit Large Storage Unit > --- WEAPON (2) ------- Light Assault Rifle > --- INVENTORY (16) --- Light Treads Medium Storage Unit Structural Scanner Hardened Light Armor Plating Hardened Light Armor Plating Hardened Light Armor Plating Hardened Light Armor Plating Small Laser Small Laser Small Laser Light Assault Rifle Light Cannon Mining Laser Peak State ------------ > --- POWER ------------ Ion Engine > --- PROPULSION ------- Compact Wheel Compact Wheel > --- UTILITY ---------- Large Storage Unit Large Storage Unit > --- WEAPON ----------- Small Laser Assault Rifle > --- INVENTORY -------- Light Treads Light Treads Compact Wheel Medium Storage Unit Structural Scanner Improved Terrain Scanner Light Armor Plating Hardened Light Armor Plating Hardened Light Armor Plating Hardened Light Armor Plating Hardened Light Armor Plating EM Pulse Gun Light Assault Rifle Light Cannon Mining Laser [Rating: 9] Favorites ----------- Power Ion Engine Engine Ion Engine Propulsion Compact Wheel Treads Light Treads Wheel Compact Wheel Utility Large Storage Unit Device Improved Terrain Scanner Storage Large Storage Unit Weapon Light Assault Rifle Energy Gun Small Laser Ballistic Gun Light Assault Rifle Special Weapon Mining Laser Build | -11 -10 -10 ------- Run | Scr Mat Min Slots Evolved . | . . . Power . | . . . Propulsion . | . . . Utility . | . . . Weapon . | . . . Parts Attached 34 | 8 20 6 Power 4 | 1 2 1 Engine 4 | 1 2 1 Core . | . . . Reactor . | . . . Propulsion 8 | 2 4 2 Treads 3 | . 1 2 Leg . | . . . Wheel 5 | 2 3 . Hover . | . . . Flight . | . . . Utility 4 | 2 2 . Device 1 | 1 . . Storage 3 | 1 2 . Processor . | . . . Hackware . | . . . Protection . | . . . Artifact . | . . . Weapon 18 | 3 12 3 Energy Gun 5 | 2 3 . Energy Cannon . | . . . Ballistic Gun 10 | 1 6 3 Ballistic Cannon . | . . . Launcher . | . . . Special Weapon 3 | . 3 . Impact Weapon . | . . . Slashing Weapon . | . . . Piercing Weapon . | . . . Special Melee Weapon . | . . . Unidentified Prototypes . | . . . Parts Lost 8 | . 5 3 Power 2 | . 1 1 Propulsion 3 | . 1 2 Utility . | . . . Weapon 3 | . 3 . Highest Loss Streak 3 | . 2 3 Average Slot Usage (%) 94 | . 92 98 Engine 8 | . 7 12 Treads 7 | . 5 14 Wheel 20 | . 22 13 Device 2 | . 2 . Storage 25 | . 25 28 Energy Gun 10 | . 13 . Ballistic Gun 16 | . 13 28 Naked Turns . | . . . Heaviest Build 40 | 11 40 39 Greatest Support 32 | 26 32 16 Greatest Overweight (x) 2 | . 2 2 Average Overweight (x) 1 | . 1 2 Largest Inventory Capacity 16 | 6 16 16 Average Capacity 14 | 5 13 16 Most Carried 16 | 6 16 16 Average Carried 13 | 3 13 15 Final Capacity 16 | 6 16 16 Final Carried 16 | 6 16 13 Class Distribution -------------------- 69% | Mutant 30% | Scavenger-Mutant Dominant Class ---------------- Mutant | -10/Materials Scavenger-Mutant | -10/Mines Resources | -11 -10 -10 ----------- Run | Scr Mat Min Matter Collected 646 | 217 361 68 Remotely . | . . . Salvage Created 895 | 102 708 85 Parts 53 | 8 37 8 Haulers Intercepted 1 | . 1 . Recyclers Shooed 1 | . . 1 Parts Field Recycled . | . . . Retrieved Matter . | . . . Parts Self-Destructed . | . . . Prevented . | . . . Kills | -11 -10 -10 ------- Run | Scr Mat Min Combat Hostiles Destroyed 21 | . 15 6 Guns 21 | . 15 6 Classes Destroyed 8 | 2 5 1 Worker 1 | . 1 . Tunneler 2 | 2 . . Hauler 1 | . 1 . Recycler 3 | 1 2 . Watcher 2 | . 2 . Swarmer 11 | . 6 5 Grunt 9 | . 9 . Assembled 1 | . . 1 Best Kill Streak 4 | 2 4 2 Combat Bots Only 3 | . 3 2 Max Kills in Single Turn 2 | 2 1 1 Gunslinging . | . . . Exploded . | . . . Melee . | . . . Uniques/NPCs Destroyed . | . . . Combat | -11 -10 -10 -------- Run | Scr Mat Min Damage Taken 1297 | 32 725 540 Core 251 | . 125 126 Absorbed by Shields . | . . . Core Remaining (%) 100 | 100 . . Volleys Fired 107 | 2 78 27 Largest 2 | 2 2 2 Hottest 100 | 60 100 40 Shots Fired 200 | 4 145 51 Gun 191 | 4 136 51 Cannon . | . . . Launcher . | . . . Special 9 | . 9 . Kinetic 116 | 2 63 51 Thermal 71 | . 71 . Explosive . | . . . Electromagnetic 13 | 2 11 . Robot Hit Streak 15 | 3 15 5 Robot Miss Streak 5 | . 5 4 Penetration Max . | . . . Secondary Targets 3 | . 2 1 Max Gunslinging Chain 1 | . 1 1 Shots Hit Robots 121 | 3 88 30 Core Hits 51 | 3 34 14 Critical Hits 1 | . . 1 Critical Kills . | . . . Critical Parts Destroyed 1 | . . 1 Melee Attacks . | . . . Impact . | . . . Slashing . | . . . Piercing . | . . . Sneak Attacks . | . . . Combat Hostiles . | . . . Follow-up Attacks . | . . . Damage Inflicted 1362 | 178 953 231 Guns 1225 | 41 953 231 Cannons . | . . . Explosions 137 | 137 . . Melee . | . . . Ramming . | . . . Kinetic 601 | 14 356 231 Thermal 626 | 137 489 . Explosive . | . . . Electromagnetic 135 | 27 108 . Impact . | . . . Slashing . | . . . Piercing . | . . . Highest Corruption 4 | . . 4 Average Corruption 4 | . . 4 Corruption Purged . | . . . Effects 1 | . . 1 Parts Rejected 1 | . . 1 Overload Shots . | . . . Overflow Damage . | . . . Projectiles . | . . . Explosions . | . . . Melee . | . . . Knockbacks . | . . . Impact . | . . . Kinetic . | . . . Secondary . | . . . Self-Inflicted Damage 32 | 32 . . Shots 1 | 1 . . Rammed . | . . . Targets Rammed . | . . . Kicked . | . . . Crushed . | . . . Highest Temperature 176 | 7 176 20 Average Temperature 61 | 4 63 15 Received Heat Transfer 376 | . 276 100 Siege Activations . | . . . Robots Corrupted . | . . . Combat Hostiles . | . . . Parts Fried . | . . . Impact Corruptions . | . . . Robots Melted . | . . . Combat Hostiles . | . . . Parts Melted 1 | . 1 . Heat Transferred 1250 | 200 1050 . Parts Sabotaged . | . . . Parts Stolen . | . . . Parts Stripped . | . . . Power Chain Reactions 1 | 1 . . Missiles Intercepted . | . . . Alert | -11 -10 -10 ------- Run | Scr Mat Min Peak Influence 300 | 15 300 252 Average Influence 116 | 5 91 213 Maximum Alert Level 1 | . 1 1 Low Security (%) 74 | 100 85 37 Level 1 25 | . 14 62 Level 2 . | . . . Level 3 . | . . . Level 4 . | . . . Level 5 . | . . . High Security . | . . . Max Security . | . . . Squads Dispatched 3 | . 3 . Investigation 2 | . 2 . Extermination . | . . . Reinforcement 1 | . 1 . Assault . | . . . Garrison . | . . . Intercept . | . . . Construction Impeded . | . . . Haulers Reinforced . | . . . Stealth | -11 -10 -10 --------- Run | Scr Mat Min Distress Signals 4 | . 4 . Communications Jammed . | . . . Distress Signals . | . . . Times Spotted 61 | . 25 36 Peak Tracking Total 25 | . 6 25 Tactical Retreats 9 | . 3 6 Traps | -11 -10 -10 ------- Run | Scr Mat Min Traps Triggered . | . . . Indirectly . | . . . Trap Hack Attempts . | . . . Triggered . | . . . Disarmed . | . . . Reprogrammed . | . . . Reused . | . . . Traps Extracted . | . . . Installed . | . . . Triggered . | . . . Machines | -11 -10 -10 ---------- Run | Scr Mat Min Machines Disabled . | . . . Max in Single Turn . | . . . Machines Sabotaged . | . . . Garrisons Compromised . | . . . Overloaded Fab Kills . | . . . Fab Network Shutdowns . | . . . Hacking | -11 -10 -10 --------- Run | Scr Mat Min Machines Accessed 9 | . 8 1 Terminals 7 | . 6 1 Fabricators . | . . . Repair Stations . | . . . Recycling Units 2 | . 2 . Scanalyzers . | . . . Garrison Access . | . . . Total Hacks 25 | . 22 3 Successful 12 | . 12 . Failed 13 | . 10 3 Catastrophic 1 | . . 1 Database Lockouts . | . . . Manual 18 | . 15 3 Terminals 21 | . 18 3 Fabricators . | . . . Repair Stations . | . . . Recycling Units 4 | . 4 . Scanalyzers . | . . . Garrison Access . | . . . Terminal Hacks 7 | . 7 . Robot Analysis 3 | . 3 . Terminal Index 1 | . 1 . Transport Status 1 | . 1 . Hauler Manifests 1 | . 1 . Zone Layout 1 | . 1 . Fabricator Hacks . | . . . Repair Station Hacks . | . . . Recycling Unit Hacks . | . . . Scanalyzer . | . . . Garrison Access Hacks . | . . . Unauthorized Hacks 12 | . 12 . Terminals 3 | . 3 . Track 1 | . 1 . Botnet 1 | . 1 . Operators 1 | . 1 . Fabricators . | . . . Repair Stations . | . . . Recycling Units 2 | . 2 . Tunnel 2 | . 2 . Scanalyzers . | . . . Garrison Access . | . . . Data Cores Recovered . | . . . Used . | . . . Hacking Detections 8 | . 7 1 Full Trace Events . | . . . Feedback Events . | . . . Feedback Blocked . | . . . Robot Schematics Acquired . | . . . Robots Built . | . . . Matter . | . . . Time . | . . . Total Robot Build Rating . | . . . Part Schematics Acquired . | . . . Parts Built . | . . . Matter . | . . . Time . | . . . Total Part Build Rating . | . . . Parts Repaired . | . . . Time . | . . . Parts Recycled . | . . . Recycled Matter . | . . . Retrieved Matter . | . . . Retrieved Components . | . . . Parts Scanalyzed . | . . . Part Schematics Acquired . | . . . Parts Damaged . | . . . Bothacking | -11 -10 -10 ------------ Run | Scr Mat Min Used RIF Installer . | . . . Robots Hacked . | . . . Non-combat . | . . . Combat . | . . . Robot Hacks Applied . | . . . Relay Couplers Released . | . . . Robots Rewired . | . . . Allies Hacked . | . . . Hacks Repelled . | . . . Allies | -11 -10 -10 -------- Run | Scr Mat Min Total Allies . | . . . Largest Group . | . . . Highest-Rated Group . | . . . Highest-Rated Ally . | . . . Total Orders . | . . . Ally Attacks . | . . . Total Damage . | . . . Kills . | . . . Allies Corrupted . | . . . Allies Melted . | . . . Intel | -11 -10 -10 ------- Run | Scr Mat Min Robot Analysis Total 3 | . 3 . Derelict Logs Recovered 1 | . . 1 Drone Launches . | . . . Drone Recoveries . | . . . Exploration | -11 -10 -10 ------------- Run | Scr Mat Min Turns Passed 1535 | 62 1107 366 Spaces Moved 969 | 42 690 237 Core 1 | 1 . . Treads . | . . . Legs . | . . . Wheels 968 | 41 690 237 Hover . | . . . Flight . | . . . Fastest Speed 50 | 50 90 120 Average Speed 111 | 90 110 120 Slowest Speed 120 | 100 120 120 Overloaded Moves . | . . . Propulsion Burnouts . | . . . Robots Hopped . | . . . Cave-ins Triggered . | . . . Exploration Rate (%) 44 | 3 84 46 Regions Visited 2 Branch Regions 1 Pre-discovered Areas 2 | . 2 . Known Exits Taken . | . . . Unknown Exits Taken 2 | 1 1 . Scrap Searched 1 | . . 1 Spaces Dug 7 | . 7 . Terrain Destroyed 11 | 2 9 . Melee . | . . . Projectile 9 | . 9 . AOE 2 | 2 . . Actions | -11 -10 -10 --------- Run | Scr Mat Min Total 1217 | 58 879 280 Wait 70 | . 65 5 Move 967 | 41 689 237 Hop . | . . . Pick Up 24 | 7 16 1 Fast Attach 11 | 6 5 . Attach 9 | 1 5 3 Detach 1 | . 1 . Swap 14 | 1 10 3 Drop 14 | . 10 4 Fire 107 | 2 78 27 Melee . | . . . Ram . | . . . Kick . | . . . Crush . | . . . Escape Stasis . | . . . Rewire . | . . . Trap . | . . . Miscellaneous . | . . . Route ------- -11/Scrapyard -10/Materials (discovered 4 exits: [*Mat x3] / *Min) -10/Mines (discovered 1 exit: [*Mat]) History --------- Turn | Location | Event 17 | -11/Scrapyard | Discovered new exit (range 16) 63 | -11/Scrapyard | Entered Materials 237 | -10/Materials | Discovered new exit (range 10) 278 | -10/Materials | Discovered new exit (range 11) 312 | -10/Materials | Build established: Mutant 333 | -10/Materials | Discovered new exit (range 13) 470 | -10/Materials | Discovered new exit (range 4) 1170 | -10/Materials | Entered Mines 1172 | -10/Mines | Core integrity fell below 50% 1204 | -10/Mines | Learned location of 1 exit from Materials 1342 | -10/Mines | Build established: Scavenger-Mutant 1344 | -10/Mines | Discovered new exit (range 9) 1494 | -10/Mines | Assembled infested the area 1509 | -10/Mines | Core integrity fell below 20% 1536 | -10/Mines | Destroyed by as-72461 with Assembled Heavy Rifle Last Messages --------------- 01378_ S-10 Pest destroyed. 01381_ Acquired 6 matter. 01383_ Dropped Lgt. Assault Rifle. 01384_ Acquired 10 matter. 01494_ ALERT: Infestation in the mines, dispatching Demolisher response squad. 01504_ as-63173 destroyed. 01505_ as-19090 destroyed. 01505_ as-04039 destroyed. 01505_ as-24624 destroyed. 01505_ as-60845 destroyed. 01506_ The unstable cave ceiling collapses. 01509_ Ion Engine destroyed. 01510_ D-53 Grenadier destroyed. 01521_ Com. Wheel destroyed. 01521_ System corrupted by crushing effect (+4). 01523_ as-83208 destroyed. 01526_ Lgt. Treads destroyed. 01530_ as-76180 destroyed. 01531_ System corrupted: Lgt. Assault Rifle rejected. Map ----- +----------------------------------------------------+ | ?????????????????????????????????????????????????? | | ?????????????????????????????????????????????????? | | ?????????????????????????????????????????????????? | | ?????????????????????????????????????????????????? | | ?????????????????????????????????????????????????? | | ?????????????????????????????????????????????????? | | ?????????????????????????????????????????????????? | | ???????????????????????????????????#??????? "????? | | #####????????????????????????????? ?????? ????? | | #????????????????????????????? ????? ???? | | < #????????????????????????????? #????# ???? | | #????????????????????????????? ##### #???? | | #????????????????????????????? #????? | | #?????????????????????????#### # % % #?????? | | ######????????? ??????? # % #??????? | | """ #?????????? ##### !#% #??????? | | """ #?????????????? " % !%! ##?????? | | """ #### #??????????????????"%" %== #?????? | | #??# #????????????????????? !* #????? | | #??# #?????????????????????# # ? | | #??# #????????????????????## #????? ? | | #####??# #???????????????????## ##???????? ?? | | ???????# #??????????????????## ##????????????? | | ???##### #??????????????????# #????????????? | | ???# *%[#????????????#####?# #????????????? | | ???# ####????????????# @#?## ##????????????? | | #### #?????????#?????# aa#### ##????????????? | | ## #????????? ?????##a ## #????????????? | | # #????????? ??????## ##???????????? | | #????????# #??????## ##??????????? | | ##???????# #???????## #??????????? | | ##??????# #????????### #??????????? | | ##?????# #??????????## ##??????????? | | ### ##????# #???????????#### ####???????????? | | ###?## ##???# #??????????????# #??????????????? | | ##????## ##### #??????????????# #??????????????? | | #??????# #??????????????# #??????????????? | | #??????# #### #?????????###### #??????????????? | | ###????# #??# #?????????# #??????????????? | | ##???## #### #########?# ######??????????????? | | #????# #?# #???????????????????? | | " #??## ####### #### ### #???????????????????? | | " #??# ##?????# #??# #???????????????????? | | " ##??# #??????# #??# #####???????????????????? | | ##???# #??????# #??# #???????????????????????? | | ###???## ##??????# #??# #???????????????????????? | | ????### ##???????# #??# #???????????????????????? | | ???## ##????????# #??# #???????????????????????? | | ???# ##????????? #??# #???????????????????????? | | ???# #??????????##??? #???????????????????????? | +----------------------------------------------------+ Best States ------------- Heat Dissipation 25 Energy Generation 10 Energy Capacity 250 Matter Stores 300 Matter Capacity 300 Sight Range 16 Terrain Scan Range 16 Terrain Scan Density 10 Evasion (%) 42 Recoil Reduction 2 Item Schematics ----------------- None Robot Schematics ------------------ None Fabricated ------------ Nothing Alien Tech Used ----------------- None Achievements -------------- None Challenges ------------ None Game ------ Seed HardcellAlertCycler Manual? 0 Play Time 00:12:55 Cumulative 330.5 hours Start 2020.03.03 @ 17:33:27 End 2020.03.03 @ 17:44:37 Sessions 1 Manual Loads 0 Difficulty Rogue Special Mode None Game No. 241 Rogue 241 Adventurer 0 Explorer 0 Win Type - Total 3 Types 3/0/0/0/0/0/0 Lore% 76 Gallery% 83 Achievement% 61 Wizard Run 0 Options --------- ASCII 0 Keyboard 0 Movement Mouse Keybinds 1 Fullscreen 2 Font 24/Smallcaps Map View 76x50 Tactical HUD 1 Map Filters NONE Filters NONE Steam 1 RUN: 11ae3171-6471-476b-8dd8-5c02bd0ff9e9